Workbook

Sheet Árbevétel (értékesítés)
B1: Tizenkét havi | AD1: Cég neve
B2: EREDMÉNY-ELŐREJELZÉS | AB2: PÉNZÜGYI ÉV KEZDETE: | AC2: JAN | AD2: =YEAR(TODAY()) -> 2017
D3: =UPPER(TEXT(DATE(PÉÉvKezdete,PÉHónapSz,1),"hhh.éé")) -> JAN.17 | E3: =UPPER(TEXT(DATE(PÉÉvKezdete,PÉHónapSz+1,1),"hhh.éé")) -> FEBR.17 | F3: =UPPER(TEXT(DATE(PÉÉvKezdete,PÉHónapSz+2,1),"hhh.éé")) -> MÁRC.17 | G3: =UPPER(TEXT(DATE(PÉÉvKezdete,PÉHónapSz+3,1),"hhh.éé")) -> ÁPR.17 | H3: =UPPER(TEXT(DATE(PÉÉvKezdete,PÉHónapSz+4,1),"hhh.éé")) -> MÁJ.17 | I3: =UPPER(TEXT(DATE(PÉÉvKezdete,PÉHónapSz+5,1),"hhh.éé")) -> JÚN.17 | J3: =UPPER(TEXT(DATE(PÉÉvKezdete,PÉHónapSz+6,1),"hhh.éé")) -> JÚL.17 | K3: =UPPER(TEXT(DATE(PÉÉvKezdete,PÉHónapSz+7,1),"hhh.éé")) -> AUG.17 | L3: =UPPER(TEXT(DATE(PÉÉvKezdete,PÉHónapSz+8,1),"hhh.éé")) -> SZEPT.17 | M3: =UPPER(TEXT(DATE(PÉÉvKezdete,PÉHónapSz+9,1),"hhh.éé")) -> OKT.17 | N3: =UPPER(TEXT(DATE(PÉÉvKezdete,PÉHónapSz+10,1),"hhh.éé")) -> NOV.17 | O3: =UPPER(TEXT(DATE(PÉÉvKezdete,PÉHónapSz+11,1),"hhh.éé")) -> DEC.17 | P3: ÉVES | Q3: IND % | R3: =LEFT(D3,3)&" %" -> JAN % | S3: =LEFT(E3,3)&" %" -> FEB % | T3: MÁR % | U3: ÁPR % | V3: MÁJ % | W3: JÚN % | X3: JÚL % | Y3: AUG % | Z3: SZE % | AA3: OKT % | AB3: NOV % | AC3: DEC % | AD3: ÉVES %
B4: ÁRBEVÉTEL (ÉRTÉKESÍTÉS) | C4: TREND | D4: Jan | E4: Febr | F4: Márc | G4: Ápr | H4: Máj | I4: Jún | J4: Júl | K4: Aug | L4: Szept | M4: Okt | N4: Nov | O4: Dec | P4: Éves | Q4: Index % | R4: Jan % | S4: Feb % | T4: Már % | U4: Ápr % | V4: Máj % | W4: Jún % | X4: Júl % | Y4: Aug % | Z4: Sze % | AA4: Okt % | AB4: Nov % | AC4: Dec % | AD4: Éves %
B5: 1. árbevétel | D5: 18,600 Ft | E5: 10,800 Ft | F5: 9,200 Ft | G5: 12,200 Ft | H5: 19,000 Ft | I5: 7,100 Ft | J5: 2,100 Ft | K5: 3,700 Ft | L5: 2,400 Ft | M5: 17,800 Ft | N5: 9,200 Ft | O5: 9,700 Ft | P5: =SUM(Árbevétel[[#This Row],[Jan]:[Dec]]) -> 121,800 Ft | Q5: 12% | R5: =IFERROR(Árbevétel[[#This Row],[Jan]]/Árbevétel[[#Totals],[Jan]],"-") -> 30% | S5: =IFERROR(Árbevétel[[#This Row],[Febr]]/Árbevétel[[#Totals],[Febr]],"-") -> 15% | T5: =IFERROR(Árbevétel[[#This Row],[Márc]]/Árbevétel[[#Totals],[Márc]],"-") -> 11% | U5: =IFERROR(Árbevétel[[#This Row],[Ápr]]/Árbevétel[[#Totals],[Ápr]],"-") -> 20% | V5: =IFERROR(Árbevétel[[#This Row],[Máj]]/Árbevétel[[#Totals],[Máj]],"-") -> 23% | W5: =IFERROR(Árbevétel[[#This Row],[Jún]]/Árbevétel[[#Totals],[Jún]],"-") -> 12% | X5: =IFERROR(Árbevétel[[#This Row],[Júl]]/Árbevétel[[#Totals],[Júl]],"-") -> 4% | Y5: =IFERROR(Árbevétel[[#This Row],[Aug]]/Árbevétel[[#Totals],[Aug]],"-") -> 5% | Z5: =IFERROR(Árbevétel[[#This Row],[Szept]]/Árbevétel[[#Totals],[Szept]],"-") -> 3% | AA5: =IFERROR(Árbevétel[[#This Row],[Okt]]/Árbevétel[[#Totals],[Okt]],"-") -> 26% | AB5: =IFERROR(Árbevétel[[#This Row],[Nov]]/Árbevétel[[#Totals],[Nov]],"-") -> 12% | AC5: =IFERROR(Árbevétel[[#This Row],[Dec]]/Árbevétel[[#Totals],[Dec]],"-") -> 9% | AD5: =IFERROR(Árbevétel[[#This Row],[Éves]]/Árbevétel[[#Totals],[Éves]],"-") -> 14%
B6: 2. árbevétel | D6: 1,500 Ft | E6: 1,600 Ft | F6: 19,800 Ft | G6: 4,400 Ft | H6: 2,500 Ft | I6: 6,800 Ft | J6: 4,300 Ft | K6: 11,900 Ft | L6: 3,700 Ft | M6: 11,800 Ft | N6: 2,900 Ft | O6: 17,100 Ft | P6: =SUM(Árbevétel[[#This Row],[Jan]:[Dec]]) -> 88,300 Ft | Q6: 18% | R6: =IFERROR(Árbevétel[[#This Row],[Jan]]/Árbevétel[[#Totals],[Jan]],"-") -> 2% | S6: =IFERROR(Árbevétel[[#This Row],[Febr]]/Árbevétel[[#Totals],[Febr]],"-") -> 2% | T6: =IFERROR(Árbevétel[[#This Row],[Márc]]/Árbevétel[[#Totals],[Márc]],"-") -> 24% | U6: =IFERROR(Árbevétel[[#This Row],[Ápr]]/Árbevétel[[#Totals],[Ápr]],"-") -> 7% | V6: =IFERROR(Árbevétel[[#This Row],[Máj]]/Árbevétel[[#Totals],[Máj]],"-") -> 3% | W6: =IFERROR(Árbevétel[[#This Row],[Jún]]/Árbevétel[[#Totals],[Jún]],"-") -> 12% | X6: =IFERROR(Árbevétel[[#This Row],[Júl]]/Árbevétel[[#Totals],[Júl]],"-") -> 7% | Y6: =IFERROR(Árbevétel[[#This Row],[Aug]]/Árbevétel[[#Totals],[Aug]],"-") -> 18% | Z6: =IFERROR(Árbevétel[[#This Row],[Szept]]/Árbevétel[[#Totals],[Szept]],"-") -> 5% | AA6: =IFERROR(Árbevétel[[#This Row],[Okt]]/Árbevétel[[#Totals],[Okt]],"-") -> 17% | AB6: =IFERROR(Árbevétel[[#This Row],[Nov]]/Árbevétel[[#Totals],[Nov]],"-") -> 4% | AC6: =IFERROR(Árbevétel[[#This Row],[Dec]]/Árbevétel[[#Totals],[Dec]],"-") -> 16% | AD6: =IFERROR(Árbevétel[[#This Row],[Éves]]/Árbevétel[[#Totals],[Éves]],"-") -> 10%
B7: 3. árbevétel | D7: 16,600 Ft | E7: 18,500 Ft | F7: 8,900 Ft | G7: 17,000 Ft | H7: 13,100 Ft | I7: 7,000 Ft | J7: 5,000 Ft | K7: 14,900 Ft | L7: 17,900 Ft | M7: 10,400 Ft | N7: 11,900 Ft | O7: 18,700 Ft | P7: =SUM(Árbevétel[[#This Row],[Jan]:[Dec]]) -> 159,900 Ft | Q7: 19% | R7: =IFERROR(Árbevétel[[#This Row],[Jan]]/Árbevétel[[#Totals],[Jan]],"-") -> 27% | S7: =IFERROR(Árbevétel[[#This Row],[Febr]]/Árbevétel[[#Totals],[Febr]],"-") -> 25% | T7: =IFERROR(Árbevétel[[#This Row],[Márc]]/Árbevétel[[#Totals],[Márc]],"-") -> 11% | U7: =IFERROR(Árbevétel[[#This Row],[Ápr]]/Árbevétel[[#Totals],[Ápr]],"-") -> 28% | V7: =IFERROR(Árbevétel[[#This Row],[Máj]]/Árbevétel[[#Totals],[Máj]],"-") -> 16% | W7: =IFERROR(Árbevétel[[#This Row],[Jún]]/Árbevétel[[#Totals],[Jún]],"-") -> 12% | X7: =IFERROR(Árbevétel[[#This Row],[Júl]]/Árbevétel[[#Totals],[Júl]],"-") -> 8% | Y7: =IFERROR(Árbevétel[[#This Row],[Aug]]/Árbevétel[[#Totals],[Aug]],"-") -> 22% | Z7: =IFERROR(Árbevétel[[#This Row],[Szept]]/Árbevétel[[#Totals],[Szept]],"-") -> 24% | AA7: =IFERROR(Árbevétel[[#This Row],[Okt]]/Árbevétel[[#Totals],[Okt]],"-") -> 15% | AB7: =IFERROR(Árbevétel[[#This Row],[Nov]]/Árbevétel[[#Totals],[Nov]],"-") -> 16% | AC7: =IFERROR(Árbevétel[[#This Row],[Dec]]/Árbevétel[[#Totals],[Dec]],"-") -> 18% | AD7: =IFERROR(Árbevétel[[#This Row],[Éves]]/Árbevétel[[#Totals],[Éves]],"-") -> 18%
B8: 4. árbevétel | D8: 2,100 Ft | E8: 11,300 Ft | F8: 8,300 Ft | G8: 1,700 Ft | H8: 13,000 Ft | I8: 2,600 Ft | J8: 16,700 Ft | K8: 10,200 Ft | L8: 8,200 Ft | M8: 3,300 Ft | N8: 8,800 Ft | O8: 19,300 Ft | P8: =SUM(Árbevétel[[#This Row],[Jan]:[Dec]]) -> 105,500 Ft | Q8: 11% | R8: =IFERROR(Árbevétel[[#This Row],[Jan]]/Árbevétel[[#Totals],[Jan]],"-") -> 3% | S8: =IFERROR(Árbevétel[[#This Row],[Febr]]/Árbevétel[[#Totals],[Febr]],"-") -> 15% | T8: =IFERROR(Árbevétel[[#This Row],[Márc]]/Árbevétel[[#Totals],[Márc]],"-") -> 10% | U8: =IFERROR(Árbevétel[[#This Row],[Ápr]]/Árbevétel[[#Totals],[Ápr]],"-") -> 3% | V8: =IFERROR(Árbevétel[[#This Row],[Máj]]/Árbevétel[[#Totals],[Máj]],"-") -> 16% | W8: =IFERROR(Árbevétel[[#This Row],[Jún]]/Árbevétel[[#Totals],[Jún]],"-") -> 4% | X8: =IFERROR(Árbevétel[[#This Row],[Júl]]/Árbevétel[[#Totals],[Júl]],"-") -> 28% | Y8: =IFERROR(Árbevétel[[#This Row],[Aug]]/Árbevétel[[#Totals],[Aug]],"-") -> 15% | Z8: =IFERROR(Árbevétel[[#This Row],[Szept]]/Árbevétel[[#Totals],[Szept]],"-") -> 11% | AA8: =IFERROR(Árbevétel[[#This Row],[Okt]]/Árbevétel[[#Totals],[Okt]],"-") -> 5% | AB8: =IFERROR(Árbevétel[[#This Row],[Nov]]/Árbevétel[[#Totals],[Nov]],"-") -> 12% | AC8: =IFERROR(Árbevétel[[#This Row],[Dec]]/Árbevétel[[#Totals],[Dec]],"-") -> 19% | AD8: =IFERROR(Árbevétel[[#This Row],[Éves]]/Árbevétel[[#Totals],[Éves]],"-") -> 12%
B9: 5. árbevétel | D9: 7,000 Ft | E9: 16,000 Ft | F9: 12,500 Ft | G9: 8,400 Ft | H9: 19,100 Ft | I9: 9,700 Ft | J9: 5,200 Ft | K9: 4,500 Ft | L9: 17,300 Ft | M9: 13,600 Ft | N9: 14,400 Ft | O9: 16,700 Ft | P9: =SUM(Árbevétel[[#This Row],[Jan]:[Dec]]) -> 144,400 Ft | Q9: 20% | R9: =IFERROR(Árbevétel[[#This Row],[Jan]]/Árbevétel[[#Totals],[Jan]],"-") -> 11% | S9: =IFERROR(Árbevétel[[#This Row],[Febr]]/Árbevétel[[#Totals],[Febr]],"-") -> 22% | T9: =IFERROR(Árbevétel[[#This Row],[Márc]]/Árbevétel[[#Totals],[Márc]],"-") -> 15% | U9: =IFERROR(Árbevétel[[#This Row],[Ápr]]/Árbevétel[[#Totals],[Ápr]],"-") -> 14% | V9: =IFERROR(Árbevétel[[#This Row],[Máj]]/Árbevétel[[#Totals],[Máj]],"-") -> 24% | W9: =IFERROR(Árbevétel[[#This Row],[Jún]]/Árbevétel[[#Totals],[Jún]],"-") -> 17% | X9: =IFERROR(Árbevétel[[#This Row],[Júl]]/Árbevétel[[#Totals],[Júl]],"-") -> 9% | Y9: =IFERROR(Árbevétel[[#This Row],[Aug]]/Árbevétel[[#Totals],[Aug]],"-") -> 7% | Z9: =IFERROR(Árbevétel[[#This Row],[Szept]]/Árbevétel[[#Totals],[Szept]],"-") -> 23% | AA9: =IFERROR(Árbevétel[[#This Row],[Okt]]/Árbevétel[[#Totals],[Okt]],"-") -> 20% | AB9: =IFERROR(Árbevétel[[#This Row],[Nov]]/Árbevétel[[#Totals],[Nov]],"-") -> 19% | AC9: =IFERROR(Árbevétel[[#This Row],[Dec]]/Árbevétel[[#Totals],[Dec]],"-") -> 16% | AD9: =IFERROR(Árbevétel[[#This Row],[Éves]]/Árbevétel[[#Totals],[Éves]],"-") -> 17%
B10: 6. árbevétel | D10: 6,100 Ft | E10: 9,900 Ft | F10: 7,000 Ft | G10: 16,200 Ft | H10: 2,800 Ft | I10: 16,300 Ft | J10: 10,100 Ft | K10: 10,300 Ft | L10: 7,800 Ft | M10: 3,300 Ft | N10: 16,200 Ft | O10: 15,900 Ft | P10: =SUM(Árbevétel[[#This Row],[Jan]:[Dec]]) -> 121,900 Ft | Q10: 10% | R10: =IFERROR(Árbevétel[[#This Row],[Jan]]/Árbevétel[[#Totals],[Jan]],"-") -> 10% | S10: =IFERROR(Árbevétel[[#This Row],[Febr]]/Árbevétel[[#Totals],[Febr]],"-") -> 13% | T10: =IFERROR(Árbevétel[[#This Row],[Márc]]/Árbevétel[[#Totals],[Márc]],"-") -> 9% | U10: =IFERROR(Árbevétel[[#This Row],[Ápr]]/Árbevétel[[#Totals],[Ápr]],"-") -> 27% | V10: =IFERROR(Árbevétel[[#This Row],[Máj]]/Árbevétel[[#Totals],[Máj]],"-") -> 3% | W10: =IFERROR(Árbevétel[[#This Row],[Jún]]/Árbevétel[[#Totals],[Jún]],"-") -> 28% | X10: =IFERROR(Árbevétel[[#This Row],[Júl]]/Árbevétel[[#Totals],[Júl]],"-") -> 17% | Y10: =IFERROR(Árbevétel[[#This Row],[Aug]]/Árbevétel[[#Totals],[Aug]],"-") -> 15% | Z10: =IFERROR(Árbevétel[[#This Row],[Szept]]/Árbevétel[[#Totals],[Szept]],"-") -> 10% | AA10: =IFERROR(Árbevétel[[#This Row],[Okt]]/Árbevétel[[#Totals],[Okt]],"-") -> 5% | AB10: =IFERROR(Árbevétel[[#This Row],[Nov]]/Árbevétel[[#Totals],[Nov]],"-") -> 22% | AC10: =IFERROR(Árbevétel[[#This Row],[Dec]]/Árbevétel[[#Totals],[Dec]],"-") -> 15% | AD10: =IFERROR(Árbevétel[[#This Row],[Éves]]/Árbevétel[[#Totals],[Éves]],"-") -> 14%
B11: 7. árbevétel | D11: 10,500 Ft | E11: 5,500 Ft | F11: 16,300 Ft | G11: 1,200 Ft | H11: 11,700 Ft | I11: 8,300 Ft | J11: 16,300 Ft | K11: 12,000 Ft | L11: 17,100 Ft | M11: 7,900 Ft | N11: 10,500 Ft | O11: 6,900 Ft | P11: =SUM(Árbevétel[[#This Row],[Jan]:[Dec]]) -> 124,200 Ft | Q11: 10% | R11: =IFERROR(Árbevétel[[#This Row],[Jan]]/Árbevétel[[#Totals],[Jan]],"-") -> 17% | S11: =IFERROR(Árbevétel[[#This Row],[Febr]]/Árbevétel[[#Totals],[Febr]],"-") -> 7% | T11: =IFERROR(Árbevétel[[#This Row],[Márc]]/Árbevétel[[#Totals],[Márc]],"-") -> 20% | U11: =IFERROR(Árbevétel[[#This Row],[Ápr]]/Árbevétel[[#Totals],[Ápr]],"-") -> 2% | V11: =IFERROR(Árbevétel[[#This Row],[Máj]]/Árbevétel[[#Totals],[Máj]],"-") -> 14% | W11: =IFERROR(Árbevétel[[#This Row],[Jún]]/Árbevétel[[#Totals],[Jún]],"-") -> 14% | X11: =IFERROR(Árbevétel[[#This Row],[Júl]]/Árbevétel[[#Totals],[Júl]],"-") -> 27% | Y11: =IFERROR(Árbevétel[[#This Row],[Aug]]/Árbevétel[[#Totals],[Aug]],"-") -> 18% | Z11: =IFERROR(Árbevétel[[#This Row],[Szept]]/Árbevétel[[#Totals],[Szept]],"-") -> 23% | AA11: =IFERROR(Árbevétel[[#This Row],[Okt]]/Árbevétel[[#Totals],[Okt]],"-") -> 12% | AB11: =IFERROR(Árbevétel[[#This Row],[Nov]]/Árbevétel[[#Totals],[Nov]],"-") -> 14% | AC11: =IFERROR(Árbevétel[[#This Row],[Dec]]/Árbevétel[[#Totals],[Dec]],"-") -> 7% | AD11: =IFERROR(Árbevétel[[#This Row],[Éves]]/Árbevétel[[#Totals],[Éves]],"-") -> 14%
B12: ÉRTÉKESÍTÉS ÖSSZESEN | D12: =SUBTOTAL(109,Árbevétel[Jan]) -> 62,400 Ft | E12: =SUBTOTAL(109,Árbevétel[Febr]) -> 73,600 Ft | F12: =SUBTOTAL(109,Árbevétel[Márc]) -> 82,000 Ft | G12: =SUBTOTAL(109,Árbevétel[Ápr]) -> 61,100 Ft | H12: =SUBTOTAL(109,Árbevétel[Máj]) -> 81,200 Ft | I12: =SUBTOTAL(109,Árbevétel[Jún]) -> 57,800 Ft | J12: =SUBTOTAL(109,Árbevétel[Júl]) -> 59,700 Ft | K12: =SUBTOTAL(109,Árbevétel[Aug]) -> 67,500 Ft | L12: =SUBTOTAL(109,Árbevétel[Szept]) -> 74,400 Ft | M12: =SUBTOTAL(109,Árbevétel[Okt]) -> 68,100 Ft | N12: =SUBTOTAL(109,Árbevétel[Nov]) -> 73,900 Ft | O12: =SUBTOTAL(109,Árbevétel[Dec]) -> 104,300 Ft | P12: =SUBTOTAL(109,Árbevétel[Éves]) -> 866,000 Ft | Q12: =SUBTOTAL(109,Árbevétel[Index %]) -> 100% | R12: =SUBTOTAL(109,Árbevétel[Jan %]) -> 100% | S12: =SUBTOTAL(109,Árbevétel[Feb %]) -> 100% | T12: =SUBTOTAL(109,Árbevétel[Már %]) -> 100% | U12: =SUBTOTAL(109,Árbevétel[Ápr %]) -> 100% | V12: =SUBTOTAL(109,Árbevétel[Máj %]) -> 100% | W12: =SUBTOTAL(109,Árbevétel[Jún %]) -> 100% | X12: =SUBTOTAL(109,Árbevétel[Júl %]) -> 100% | Y12: =SUBTOTAL(109,Árbevétel[Aug %]) -> 100% | Z12: =SUBTOTAL(109,Árbevétel[Sze %]) -> 100% | AA12: =SUBTOTAL(109,Árbevétel[Okt %]) -> 100% | AB12: =SUBTOTAL(109,Árbevétel[Nov %]) -> 100% | AC12: =SUBTOTAL(109,Árbevétel[Dec %]) -> 100% | AD12: =SUBTOTAL(109,Árbevétel[Éves %]) -> 100%

Sheet Értékesítés költsége
B1: =Előrejelzési_időszak_címe -> Tizenkét havi | AD1: =Cég_név -> Cég neve
B2: =Munkalap_címe -> EREDMÉNY-ELŐREJELZÉS | AB2: PÉNZÜGYI ÉV: | AC2: =PÉHónapKezdete -> JAN | AD2: =PÉÉvKezdete -> 2017
D3: =UPPER(TEXT(DATE(PÉÉvKezdete,PÉHónapSz,1),"hhh.éé")) -> JAN.17 | E3: =UPPER(TEXT(DATE(PÉÉvKezdete,PÉHónapSz+1,1),"hhh.éé")) -> FEBR.17 | F3: =UPPER(TEXT(DATE(PÉÉvKezdete,PÉHónapSz+2,1),"hhh.éé")) -> MÁRC.17 | G3: =UPPER(TEXT(DATE(PÉÉvKezdete,PÉHónapSz+3,1),"hhh.éé")) -> ÁPR.17 | H3: =UPPER(TEXT(DATE(PÉÉvKezdete,PÉHónapSz+4,1),"hhh.éé")) -> MÁJ.17 | I3: =UPPER(TEXT(DATE(PÉÉvKezdete,PÉHónapSz+5,1),"hhh.éé")) -> JÚN.17 | J3: =UPPER(TEXT(DATE(PÉÉvKezdete,PÉHónapSz+6,1),"hhh.éé")) -> JÚL.17 | K3: =UPPER(TEXT(DATE(PÉÉvKezdete,PÉHónapSz+7,1),"hhh.éé")) -> AUG.17 | L3: =UPPER(TEXT(DATE(PÉÉvKezdete,PÉHónapSz+8,1),"hhh.éé")) -> SZEPT.17 | M3: =UPPER(TEXT(DATE(PÉÉvKezdete,PÉHónapSz+9,1),"hhh.éé")) -> OKT.17 | N3: =UPPER(TEXT(DATE(PÉÉvKezdete,PÉHónapSz+10,1),"hhh.éé")) -> NOV.17 | O3: =UPPER(TEXT(DATE(PÉÉvKezdete,PÉHónapSz+11,1),"hhh.éé")) -> DEC.17 | P3: ÉVES | Q3: IND % | R3: =LEFT(D3,3)&" %" -> JAN % | S3: =LEFT(E3,3)&" %" -> FEB % | T3: MÁR % | U3: ÁPR % | V3: MÁJ % | W3: JÚN % | X3: JÚL % | Y3: AUG % | Z3: SZE % | AA3: OKT % | AB3: NOV % | AC3: DEC % | AD3: ÉVES %
B4: ÉRTÉKESÍTÉS KÖLTSÉGE | C4: TREND | D4: Jan | E4: Febr | F4: Márc | G4: Ápr | H4: Máj | I4: Jún | J4: Júl | K4: Aug | L4: Szept | M4: Okt | N4: Nov | O4: Dec | P4: Éves | Q4: Index % | R4: Jan % | S4: Feb % | T4: Már % | U4: Ápr % | V4: Máj % | W4: Jún % | X4: Júl % | Y4: Aug % | Z4: Sze % | AA4: Okt % | AB4: Nov % | AC4: Dec % | AD4: Éves %
B5: 1. költség | D5: 6,100 Ft | E5: 7,800 Ft | F5: 6,500 Ft | G5: 2,900 Ft | H5: 12,500 Ft | I5: 4,900 Ft | J5: 1,400 Ft | K5: 2,600 Ft | L5: 1,400 Ft | M5: 12,900 Ft | N5: 6,000 Ft | O5: 6,500 Ft | P5: =SUM(ÉrtékesítésKöltsége[[#This Row],[Jan]:[Dec]]) -> 71,500 Ft | Q5: 12% | R5: =IFERROR(ÉrtékesítésKöltsége[[#This Row],[Jan]]/ÉrtékesítésKöltsége[[#Totals],[Jan]],"-") -> 23% | S5: =IFERROR(ÉrtékesítésKöltsége[[#This Row],[Febr]]/ÉrtékesítésKöltsége[[#Totals],[Febr]],"-") -> 22% | T5: =IFERROR(ÉrtékesítésKöltsége[[#This Row],[Márc]]/ÉrtékesítésKöltsége[[#Totals],[Márc]],"-") -> 21% | U5: =IFERROR(ÉrtékesítésKöltsége[[#This Row],[Ápr]]/ÉrtékesítésKöltsége[[#Totals],[Ápr]],"-") -> 12% | V5: =IFERROR(ÉrtékesítésKöltsége[[#This Row],[Máj]]/ÉrtékesítésKöltsége[[#Totals],[Máj]],"-") -> 31% | W5: =IFERROR(ÉrtékesítésKöltsége[[#This Row],[Jún]]/ÉrtékesítésKöltsége[[#Totals],[Jún]],"-") -> 16% | X5: =IFERROR(ÉrtékesítésKöltsége[[#This Row],[Júl]]/ÉrtékesítésKöltsége[[#Totals],[Júl]],"-") -> 5% | Y5: =IFERROR(ÉrtékesítésKöltsége[[#This Row],[Aug]]/ÉrtékesítésKöltsége[[#Totals],[Aug]],"-") -> 12% | Z5: =IFERROR(ÉrtékesítésKöltsége[[#This Row],[Szept]]/ÉrtékesítésKöltsége[[#Totals],[Szept]],"-") -> 3% | AA5: =IFERROR(ÉrtékesítésKöltsége[[#This Row],[Okt]]/ÉrtékesítésKöltsége[[#Totals],[Okt]],"-") -> 47% | AB5: =IFERROR(ÉrtékesítésKöltsége[[#This Row],[Nov]]/ÉrtékesítésKöltsége[[#Totals],[Nov]],"-") -> 23% | AC5: =IFERROR(ÉrtékesítésKöltsége[[#This Row],[Dec]]/ÉrtékesítésKöltsége[[#Totals],[Dec]],"-") -> 14% | AD5: =IFERROR(ÉrtékesítésKöltsége[[#This Row],[Éves]]/ÉrtékesítésKöltsége[[#Totals],[Éves]],"-") -> 19%
B6: 2. költség | D6: 700 Ft | E6: 500 Ft | F6: 6,900 Ft | G6: 3,200 Ft | H6: 1,100 Ft | I6: 3,000 Ft | J6: 2,700 Ft | K6: 3,200 Ft | L6: 1,000 Ft | M6: 4,100 Ft | N6: 1,300 Ft | O6: 10,500 Ft | P6: =SUM(ÉrtékesítésKöltsége[[#This Row],[Jan]:[Dec]]) -> 38,200 Ft | Q6: 18% | R6: =IFERROR(ÉrtékesítésKöltsége[[#This Row],[Jan]]/ÉrtékesítésKöltsége[[#Totals],[Jan]],"-") -> 3% | S6: =IFERROR(ÉrtékesítésKöltsége[[#This Row],[Febr]]/ÉrtékesítésKöltsége[[#Totals],[Febr]],"-") -> 1% | T6: =IFERROR(ÉrtékesítésKöltsége[[#This Row],[Márc]]/ÉrtékesítésKöltsége[[#Totals],[Márc]],"-") -> 22% | U6: =IFERROR(ÉrtékesítésKöltsége[[#This Row],[Ápr]]/ÉrtékesítésKöltsége[[#Totals],[Ápr]],"-") -> 13% | V6: =IFERROR(ÉrtékesítésKöltsége[[#This Row],[Máj]]/ÉrtékesítésKöltsége[[#Totals],[Máj]],"-") -> 3% | W6: =IFERROR(ÉrtékesítésKöltsége[[#This Row],[Jún]]/ÉrtékesítésKöltsége[[#Totals],[Jún]],"-") -> 10% | X6: =IFERROR(ÉrtékesítésKöltsége[[#This Row],[Júl]]/ÉrtékesítésKöltsége[[#Totals],[Júl]],"-") -> 9% | Y6: =IFERROR(ÉrtékesítésKöltsége[[#This Row],[Aug]]/ÉrtékesítésKöltsége[[#Totals],[Aug]],"-") -> 14% | Z6: =IFERROR(ÉrtékesítésKöltsége[[#This Row],[Szept]]/ÉrtékesítésKöltsége[[#Totals],[Szept]],"-") -> 2% | AA6: =IFERROR(ÉrtékesítésKöltsége[[#This Row],[Okt]]/ÉrtékesítésKöltsége[[#Totals],[Okt]],"-") -> 15% | AB6: =IFERROR(ÉrtékesítésKöltsége[[#This Row],[Nov]]/ÉrtékesítésKöltsége[[#Totals],[Nov]],"-") -> 5% | AC6: =IFERROR(ÉrtékesítésKöltsége[[#This Row],[Dec]]/ÉrtékesítésKöltsége[[#Totals],[Dec]],"-") -> 23% | AD6: =IFERROR(ÉrtékesítésKöltsége[[#This Row],[Éves]]/ÉrtékesítésKöltsége[[#Totals],[Éves]],"-") -> 10%
B7: 3. költség | D7: 9,900 Ft | E7: 9,500 Ft | F7: 5,100 Ft | G7: 9,000 Ft | H7: 2,100 Ft | I7: 3,400 Ft | J7: 3,000 Ft | K7: 2,400 Ft | L7: 10,900 Ft | M7: 1,600 Ft | N7: 2,100 Ft | O7: 5,200 Ft | P7: =SUM(ÉrtékesítésKöltsége[[#This Row],[Jan]:[Dec]]) -> 64,200 Ft | Q7: 19% | R7: =IFERROR(ÉrtékesítésKöltsége[[#This Row],[Jan]]/ÉrtékesítésKöltsége[[#Totals],[Jan]],"-") -> 37% | S7: =IFERROR(ÉrtékesítésKöltsége[[#This Row],[Febr]]/ÉrtékesítésKöltsége[[#Totals],[Febr]],"-") -> 27% | T7: =IFERROR(ÉrtékesítésKöltsége[[#This Row],[Márc]]/ÉrtékesítésKöltsége[[#Totals],[Márc]],"-") -> 16% | U7: =IFERROR(ÉrtékesítésKöltsége[[#This Row],[Ápr]]/ÉrtékesítésKöltsége[[#Totals],[Ápr]],"-") -> 37% | V7: =IFERROR(ÉrtékesítésKöltsége[[#This Row],[Máj]]/ÉrtékesítésKöltsége[[#Totals],[Máj]],"-") -> 5% | W7: =IFERROR(ÉrtékesítésKöltsége[[#This Row],[Jún]]/ÉrtékesítésKöltsége[[#Totals],[Jún]],"-") -> 11% | X7: =IFERROR(ÉrtékesítésKöltsége[[#This Row],[Júl]]/ÉrtékesítésKöltsége[[#Totals],[Júl]],"-") -> 10% | Y7: =IFERROR(ÉrtékesítésKöltsége[[#This Row],[Aug]]/ÉrtékesítésKöltsége[[#Totals],[Aug]],"-") -> 11% | Z7: =IFERROR(ÉrtékesítésKöltsége[[#This Row],[Szept]]/ÉrtékesítésKöltsége[[#Totals],[Szept]],"-") -> 26% | AA7: =IFERROR(ÉrtékesítésKöltsége[[#This Row],[Okt]]/ÉrtékesítésKöltsége[[#Totals],[Okt]],"-") -> 6% | AB7: =IFERROR(ÉrtékesítésKöltsége[[#This Row],[Nov]]/ÉrtékesítésKöltsége[[#Totals],[Nov]],"-") -> 8% | AC7: =IFERROR(ÉrtékesítésKöltsége[[#This Row],[Dec]]/ÉrtékesítésKöltsége[[#Totals],[Dec]],"-") -> 11% | AD7: =IFERROR(ÉrtékesítésKöltsége[[#This Row],[Éves]]/ÉrtékesítésKöltsége[[#Totals],[Éves]],"-") -> 17%
B8: 4. költség | D8: 1,300 Ft | E8: 2,800 Ft | F8: 1,500 Ft | G8: 800 Ft | H8: 8,400 Ft | I8: 1,200 Ft | J8: 5,400 Ft | K8: 7,200 Ft | L8: 4,900 Ft | M8: 2,400 Ft | N8: 6,000 Ft | O8: 3,900 Ft | P8: =SUM(ÉrtékesítésKöltsége[[#This Row],[Jan]:[Dec]]) -> 45,800 Ft | Q8: 11% | R8: =IFERROR(ÉrtékesítésKöltsége[[#This Row],[Jan]]/ÉrtékesítésKöltsége[[#Totals],[Jan]],"-") -> 5% | S8: =IFERROR(ÉrtékesítésKöltsége[[#This Row],[Febr]]/ÉrtékesítésKöltsége[[#Totals],[Febr]],"-") -> 8% | T8: =IFERROR(ÉrtékesítésKöltsége[[#This Row],[Márc]]/ÉrtékesítésKöltsége[[#Totals],[Márc]],"-") -> 5% | U8: =IFERROR(ÉrtékesítésKöltsége[[#This Row],[Ápr]]/ÉrtékesítésKöltsége[[#Totals],[Ápr]],"-") -> 3% | V8: =IFERROR(ÉrtékesítésKöltsége[[#This Row],[Máj]]/ÉrtékesítésKöltsége[[#Totals],[Máj]],"-") -> 21% | W8: =IFERROR(ÉrtékesítésKöltsége[[#This Row],[Jún]]/ÉrtékesítésKöltsége[[#Totals],[Jún]],"-") -> 4% | X8: =IFERROR(ÉrtékesítésKöltsége[[#This Row],[Júl]]/ÉrtékesítésKöltsége[[#Totals],[Júl]],"-") -> 18% | Y8: =IFERROR(ÉrtékesítésKöltsége[[#This Row],[Aug]]/ÉrtékesítésKöltsége[[#Totals],[Aug]],"-") -> 32% | Z8: =IFERROR(ÉrtékesítésKöltsége[[#This Row],[Szept]]/ÉrtékesítésKöltsége[[#Totals],[Szept]],"-") -> 12% | AA8: =IFERROR(ÉrtékesítésKöltsége[[#This Row],[Okt]]/ÉrtékesítésKöltsége[[#Totals],[Okt]],"-") -> 9% | AB8: =IFERROR(ÉrtékesítésKöltsége[[#This Row],[Nov]]/ÉrtékesítésKöltsége[[#Totals],[Nov]],"-") -> 23% | AC8: =IFERROR(ÉrtékesítésKöltsége[[#This Row],[Dec]]/ÉrtékesítésKöltsége[[#Totals],[Dec]],"-") -> 9% | AD8: =IFERROR(ÉrtékesítésKöltsége[[#This Row],[Éves]]/ÉrtékesítésKöltsége[[#Totals],[Éves]],"-") -> 12%
B9: 5. költség | D9: 3,400 Ft | E9: 7,800 Ft | F9: 4,300 Ft | G9: 3,000 Ft | H9: 7,700 Ft | I9: 5,400 Ft | J9: 2,600 Ft | K9: 1,300 Ft | L9: 5,600 Ft | M9: 3,000 Ft | N9: 4,000 Ft | O9: 6,300 Ft | P9: =SUM(ÉrtékesítésKöltsége[[#This Row],[Jan]:[Dec]]) -> 54,400 Ft | Q9: 20% | R9: =IFERROR(ÉrtékesítésKöltsége[[#This Row],[Jan]]/ÉrtékesítésKöltsége[[#Totals],[Jan]],"-") -> 13% | S9: =IFERROR(ÉrtékesítésKöltsége[[#This Row],[Febr]]/ÉrtékesítésKöltsége[[#Totals],[Febr]],"-") -> 22% | T9: =IFERROR(ÉrtékesítésKöltsége[[#This Row],[Márc]]/ÉrtékesítésKöltsége[[#Totals],[Márc]],"-") -> 14% | U9: =IFERROR(ÉrtékesítésKöltsége[[#This Row],[Ápr]]/ÉrtékesítésKöltsége[[#Totals],[Ápr]],"-") -> 12% | V9: =IFERROR(ÉrtékesítésKöltsége[[#This Row],[Máj]]/ÉrtékesítésKöltsége[[#Totals],[Máj]],"-") -> 19% | W9: =IFERROR(ÉrtékesítésKöltsége[[#This Row],[Jún]]/ÉrtékesítésKöltsége[[#Totals],[Jún]],"-") -> 17% | X9: =IFERROR(ÉrtékesítésKöltsége[[#This Row],[Júl]]/ÉrtékesítésKöltsége[[#Totals],[Júl]],"-") -> 9% | Y9: =IFERROR(ÉrtékesítésKöltsége[[#This Row],[Aug]]/ÉrtékesítésKöltsége[[#Totals],[Aug]],"-") -> 6% | Z9: =IFERROR(ÉrtékesítésKöltsége[[#This Row],[Szept]]/ÉrtékesítésKöltsége[[#Totals],[Szept]],"-") -> 14% | AA9: =IFERROR(ÉrtékesítésKöltsége[[#This Row],[Okt]]/ÉrtékesítésKöltsége[[#Totals],[Okt]],"-") -> 11% | AB9: =IFERROR(ÉrtékesítésKöltsége[[#This Row],[Nov]]/ÉrtékesítésKöltsége[[#Totals],[Nov]],"-") -> 15% | AC9: =IFERROR(ÉrtékesítésKöltsége[[#This Row],[Dec]]/ÉrtékesítésKöltsége[[#Totals],[Dec]],"-") -> 14% | AD9: =IFERROR(ÉrtékesítésKöltsége[[#This Row],[Éves]]/ÉrtékesítésKöltsége[[#Totals],[Éves]],"-") -> 14%
B10: 6. költség | D10: 3,300 Ft | E10: 6,100 Ft | F10: 4,200 Ft | G10: 4,300 Ft | H10: 1,900 Ft | I10: 9,400 Ft | J10: 4,600 Ft | K10: 1,500 Ft | L10: 5,500 Ft | M10: 1,500 Ft | N10: 3,700 Ft | O10: 8,900 Ft | P10: =SUM(ÉrtékesítésKöltsége[[#This Row],[Jan]:[Dec]]) -> 54,900 Ft | Q10: 10% | R10: =IFERROR(ÉrtékesítésKöltsége[[#This Row],[Jan]]/ÉrtékesítésKöltsége[[#Totals],[Jan]],"-") -> 12% | S10: =IFERROR(ÉrtékesítésKöltsége[[#This Row],[Febr]]/ÉrtékesítésKöltsége[[#Totals],[Febr]],"-") -> 17% | T10: =IFERROR(ÉrtékesítésKöltsége[[#This Row],[Márc]]/ÉrtékesítésKöltsége[[#Totals],[Márc]],"-") -> 13% | U10: =IFERROR(ÉrtékesítésKöltsége[[#This Row],[Ápr]]/ÉrtékesítésKöltsége[[#Totals],[Ápr]],"-") -> 18% | V10: =IFERROR(ÉrtékesítésKöltsége[[#This Row],[Máj]]/ÉrtékesítésKöltsége[[#Totals],[Máj]],"-") -> 5% | W10: =IFERROR(ÉrtékesítésKöltsége[[#This Row],[Jún]]/ÉrtékesítésKöltsége[[#Totals],[Jún]],"-") -> 30% | X10: =IFERROR(ÉrtékesítésKöltsége[[#This Row],[Júl]]/ÉrtékesítésKöltsége[[#Totals],[Júl]],"-") -> 15% | Y10: =IFERROR(ÉrtékesítésKöltsége[[#This Row],[Aug]]/ÉrtékesítésKöltsége[[#Totals],[Aug]],"-") -> 7% | Z10: =IFERROR(ÉrtékesítésKöltsége[[#This Row],[Szept]]/ÉrtékesítésKöltsége[[#Totals],[Szept]],"-") -> 13% | AA10: =IFERROR(ÉrtékesítésKöltsége[[#This Row],[Okt]]/ÉrtékesítésKöltsége[[#Totals],[Okt]],"-") -> 5% | AB10: =IFERROR(ÉrtékesítésKöltsége[[#This Row],[Nov]]/ÉrtékesítésKöltsége[[#Totals],[Nov]],"-") -> 14% | AC10: =IFERROR(ÉrtékesítésKöltsége[[#This Row],[Dec]]/ÉrtékesítésKöltsége[[#Totals],[Dec]],"-") -> 20% | AD10: =IFERROR(ÉrtékesítésKöltsége[[#This Row],[Éves]]/ÉrtékesítésKöltsége[[#Totals],[Éves]],"-") -> 14%
B11: 7. költség | D11: 1,800 Ft | E11: 1,100 Ft | F11: 3,000 Ft | G11: 900 Ft | H11: 6,200 Ft | I11: 3,900 Ft | J11: 10,200 Ft | K11: 4,400 Ft | L11: 12,100 Ft | M11: 1,900 Ft | N11: 3,300 Ft | O11: 4,000 Ft | P11: =SUM(ÉrtékesítésKöltsége[[#This Row],[Jan]:[Dec]]) -> 52,800 Ft | Q11: 10% | R11: =IFERROR(ÉrtékesítésKöltsége[[#This Row],[Jan]]/ÉrtékesítésKöltsége[[#Totals],[Jan]],"-") -> 7% | S11: =IFERROR(ÉrtékesítésKöltsége[[#This Row],[Febr]]/ÉrtékesítésKöltsége[[#Totals],[Febr]],"-") -> 3% | T11: =IFERROR(ÉrtékesítésKöltsége[[#This Row],[Márc]]/ÉrtékesítésKöltsége[[#Totals],[Márc]],"-") -> 10% | U11: =IFERROR(ÉrtékesítésKöltsége[[#This Row],[Ápr]]/ÉrtékesítésKöltsége[[#Totals],[Ápr]],"-") -> 4% | V11: =IFERROR(ÉrtékesítésKöltsége[[#This Row],[Máj]]/ÉrtékesítésKöltsége[[#Totals],[Máj]],"-") -> 16% | W11: =IFERROR(ÉrtékesítésKöltsége[[#This Row],[Jún]]/ÉrtékesítésKöltsége[[#Totals],[Jún]],"-") -> 13% | X11: =IFERROR(ÉrtékesítésKöltsége[[#This Row],[Júl]]/ÉrtékesítésKöltsége[[#Totals],[Júl]],"-") -> 34% | Y11: =IFERROR(ÉrtékesítésKöltsége[[#This Row],[Aug]]/ÉrtékesítésKöltsége[[#Totals],[Aug]],"-") -> 19% | Z11: =IFERROR(ÉrtékesítésKöltsége[[#This Row],[Szept]]/ÉrtékesítésKöltsége[[#Totals],[Szept]],"-") -> 29% | AA11: =IFERROR(ÉrtékesítésKöltsége[[#This Row],[Okt]]/ÉrtékesítésKöltsége[[#Totals],[Okt]],"-") -> 7% | AB11: =IFERROR(ÉrtékesítésKöltsége[[#This Row],[Nov]]/ÉrtékesítésKöltsége[[#Totals],[Nov]],"-") -> 13% | AC11: =IFERROR(ÉrtékesítésKöltsége[[#This Row],[Dec]]/ÉrtékesítésKöltsége[[#Totals],[Dec]],"-") -> 9% | AD11: =IFERROR(ÉrtékesítésKöltsége[[#This Row],[Éves]]/ÉrtékesítésKöltsége[[#Totals],[Éves]],"-") -> 14%
B12: ÉRTÉKESÍTÉS TELJES KÖLTSÉGE | D12: =SUBTOTAL(109,ÉrtékesítésKöltsége[Jan]) -> 26,500 Ft | E12: =SUBTOTAL(109,ÉrtékesítésKöltsége[Febr]) -> 35,600 Ft | F12: =SUBTOTAL(109,ÉrtékesítésKöltsége[Márc]) -> 31,500 Ft | G12: =SUBTOTAL(109,ÉrtékesítésKöltsége[Ápr]) -> 24,100 Ft | H12: =SUBTOTAL(109,ÉrtékesítésKöltsége[Máj]) -> 39,900 Ft | I12: =SUBTOTAL(109,ÉrtékesítésKöltsége[Jún]) -> 31,200 Ft | J12: =SUBTOTAL(109,ÉrtékesítésKöltsége[Júl]) -> 29,900 Ft | K12: =SUBTOTAL(109,ÉrtékesítésKöltsége[Aug]) -> 22,600 Ft | L12: =SUBTOTAL(109,ÉrtékesítésKöltsége[Szept]) -> 41,400 Ft | M12: =SUBTOTAL(109,ÉrtékesítésKöltsége[Okt]) -> 27,400 Ft | N12: =SUBTOTAL(109,ÉrtékesítésKöltsége[Nov]) -> 26,400 Ft | O12: =SUBTOTAL(109,ÉrtékesítésKöltsége[Dec]) -> 45,300 Ft | P12: =SUBTOTAL(109,ÉrtékesítésKöltsége[Éves]) -> 381,800 Ft | Q12: =SUBTOTAL(109,ÉrtékesítésKöltsége[Index %]) -> 100% | R12: =SUBTOTAL(109,ÉrtékesítésKöltsége[Jan %]) -> 100% | S12: =SUBTOTAL(109,ÉrtékesítésKöltsége[Feb %]) -> 100% | T12: =SUBTOTAL(109,ÉrtékesítésKöltsége[Már %]) -> 100% | U12: =SUBTOTAL(109,ÉrtékesítésKöltsége[Ápr %]) -> 100% | V12: =SUBTOTAL(109,ÉrtékesítésKöltsége[Máj %]) -> 100% | W12: =SUBTOTAL(109,ÉrtékesítésKöltsége[Jún %]) -> 100% | X12: =SUBTOTAL(109,ÉrtékesítésKöltsége[Júl %]) -> 100% | Y12: =SUBTOTAL(109,ÉrtékesítésKöltsége[Aug %]) -> 100% | Z12: =SUBTOTAL(109,ÉrtékesítésKöltsége[Sze %]) -> 100% | AA12: =SUBTOTAL(109,ÉrtékesítésKöltsége[Okt %]) -> 100% | AB12: =SUBTOTAL(109,ÉrtékesítésKöltsége[Nov %]) -> 100% | AC12: =SUBTOTAL(109,ÉrtékesítésKöltsége[Dec %]) -> 100% | AD12: =SUBTOTAL(109,ÉrtékesítésKöltsége[Éves %]) -> 100%
B14: Bruttó profit | D14: =Árbevétel[[#Totals],[Jan]]-ÉrtékesítésKöltsége[[#Totals],[Jan]] -> 35,900 Ft | E14: =Árbevétel[[#Totals],[Febr]]-ÉrtékesítésKöltsége[[#Totals],[Febr]] -> 38,000 Ft | F14: =Árbevétel[[#Totals],[Márc]]-ÉrtékesítésKöltsége[[#Totals],[Márc]] -> 50,500 Ft | G14: =Árbevétel[[#Totals],[Ápr]]-ÉrtékesítésKöltsége[[#Totals],[Ápr]] -> 37,000 Ft | H14: =Árbevétel[[#Totals],[Máj]]-ÉrtékesítésKöltsége[[#Totals],[Máj]] -> 41,300 Ft | I14: =Árbevétel[[#Totals],[Jún]]-ÉrtékesítésKöltsége[[#Totals],[Jún]] -> 26,600 Ft | J14: =Árbevétel[[#Totals],[Júl]]-ÉrtékesítésKöltsége[[#Totals],[Júl]] -> 29,800 Ft | K14: =Árbevétel[[#Totals],[Aug]]-ÉrtékesítésKöltsége[[#Totals],[Aug]] -> 44,900 Ft | L14: =Árbevétel[[#Totals],[Szept]]-ÉrtékesítésKöltsége[[#Totals],[Szept]] -> 33,000 Ft | M14: =Árbevétel[[#Totals],[Okt]]-ÉrtékesítésKöltsége[[#Totals],[Okt]] -> 40,700 Ft | N14: =Árbevétel[[#Totals],[Nov]]-ÉrtékesítésKöltsége[[#Totals],[Nov]] -> 47,500 Ft | O14: =Árbevétel[[#Totals],[Dec]]-ÉrtékesítésKöltsége[[#Totals],[Dec]] -> 59,000 Ft | P14: =Árbevétel[[#Totals],[Éves]]-ÉrtékesítésKöltsége[[#Totals],[Éves]] -> 484,200 Ft | R14: =D14/$P$14 -> 7% | S14: 8% | T14: 10% | U14: 8% | V14: 9% | W14: 5% | X14: 6% | Y14: 9% | Z14: 7% | AA14: 8% | AB14: 10% | AC14: 12% | AD14: 100%

Sheet Költség
B1: =Előrejelzési_időszak_címe -> Tizenkét havi | AD1: =Cég_név -> Cég neve
B2: ='Árbevétel (értékesítés)'!$B$2 -> EREDMÉNY-ELŐREJELZÉS | AB2: PÉNZÜGYI ÉV: | AC2: =PÉHónapKezdete -> JAN | AD2: =PÉÉvKezdete -> 2017
D3: =UPPER(TEXT(DATE(PÉÉvKezdete,PÉHónapSz,1),"hhh.éé")) -> JAN.17 | E3: =UPPER(TEXT(DATE(PÉÉvKezdete,PÉHónapSz+1,1),"hhh.éé")) -> FEBR.17 | F3: =UPPER(TEXT(DATE(PÉÉvKezdete,PÉHónapSz+2,1),"hhh.éé")) -> MÁRC.17 | G3: =UPPER(TEXT(DATE(PÉÉvKezdete,PÉHónapSz+3,1),"hhh.éé")) -> ÁPR.17 | H3: =UPPER(TEXT(DATE(PÉÉvKezdete,PÉHónapSz+4,1),"hhh.éé")) -> MÁJ.17 | I3: =UPPER(TEXT(DATE(PÉÉvKezdete,PÉHónapSz+5,1),"hhh.éé")) -> JÚN.17 | J3: =UPPER(TEXT(DATE(PÉÉvKezdete,PÉHónapSz+6,1),"hhh.éé")) -> JÚL.17 | K3: =UPPER(TEXT(DATE(PÉÉvKezdete,PÉHónapSz+7,1),"hhh.éé")) -> AUG.17 | L3: =UPPER(TEXT(DATE(PÉÉvKezdete,PÉHónapSz+8,1),"hhh.éé")) -> SZEPT.17 | M3: =UPPER(TEXT(DATE(PÉÉvKezdete,PÉHónapSz+9,1),"hhh.éé")) -> OKT.17 | N3: =UPPER(TEXT(DATE(PÉÉvKezdete,PÉHónapSz+10,1),"hhh.éé")) -> NOV.17 | O3: =UPPER(TEXT(DATE(PÉÉvKezdete,PÉHónapSz+11,1),"hhh.éé")) -> DEC.17 | P3: ÉVES | Q3: IND % | R3: =LEFT(D3,3)&" %" -> JAN % | S3: =LEFT(E3,3)&" %" -> FEB % | T3: MÁR % | U3: ÁPR % | V3: MÁJ % | W3: JÚN % | X3: JÚL % | Y3: AUG % | Z3: SZE % | AA3: OKT % | AB3: NOV % | AC3: DEC % | AD3: ÉVES %
B4: KÖLTSÉGEK | C4: TREND | D4: Oszlop1 | E4: Febr | F4: Márc | G4: Ápr | H4: Máj | I4: Jún | J4: Júl | K4: Aug | L4: Szept | M4: Okt | N4: Nov | O4: Dec | P4: Éves | Q4: Index % | R4: Jan % | S4: Feb % | T4: Már % | U4: Ápr % | V4: Máj % | W4: Jún % | X4: Júl % | Y4: Aug % | Z4: Sze % | AA4: Okt % | AB4: Nov % | AC4: Dec % | AD4: Éves %
B5: Bérköltség | D5: 1,000 Ft | E5: 1,800 Ft | F5: 1,300 Ft | G5: 800 Ft | H5: 2,200 Ft | I5: 1,800 Ft | J5: 800 Ft | K5: 1,700 Ft | L5: 2,000 Ft | M5: 800 Ft | N5: 400 Ft | O5: 1,200 Ft | P5: =SUM(TblKöltségek[[#This Row],[Oszlop1]:[Dec]]) -> 15,800 Ft | Q5: 12% | R5: =TblKöltségek[[#This Row],[Oszlop1]]/TblKöltségek[[#Totals],[Oszlop1]] -> 4% | S5: =TblKöltségek[[#This Row],[Febr]]/TblKöltségek[[#Totals],[Febr]] -> 9% | T5: =TblKöltségek[[#This Row],[Márc]]/TblKöltségek[[#Totals],[Márc]] -> 5% | U5: =TblKöltségek[[#This Row],[Ápr]]/TblKöltségek[[#Totals],[Ápr]] -> 3% | V5: =TblKöltségek[[#This Row],[Máj]]/TblKöltségek[[#Totals],[Máj]] -> 9% | W5: =TblKöltségek[[#This Row],[Jún]]/TblKöltségek[[#Totals],[Jún]] -> 7% | X5: =TblKöltségek[[#This Row],[Júl]]/TblKöltségek[[#Totals],[Júl]] -> 3% | Y5: =TblKöltségek[[#This Row],[Aug]]/TblKöltségek[[#Totals],[Aug]] -> 7% | Z5: =TblKöltségek[[#This Row],[Szept]]/TblKöltségek[[#Totals],[Szept]] -> 9% | AA5: =TblKöltségek[[#This Row],[Okt]]/TblKöltségek[[#Totals],[Okt]] -> 3% | AB5: =TblKöltségek[[#This Row],[Nov]]/TblKöltségek[[#Totals],[Nov]] -> 1% | AC5: =TblKöltségek[[#This Row],[Dec]]/TblKöltségek[[#Totals],[Dec]] -> 5% | AD5: =TblKöltségek[[#This Row],[Éves]]/TblKöltségek[[#Totals],[Éves]] -> 5%
B6: Bérszámfejtési költség | D6: 2,300 Ft | E6: 1,100 Ft | F6: 700 Ft | G6: 1,400 Ft | H6: 1,200 Ft | I6: 1,900 Ft | J6: 1,900 Ft | K6: 400 Ft | L6: 700 Ft | M6: 1,300 Ft | N6: 2,500 Ft | O6: 500 Ft | P6: =SUM(TblKöltségek[[#This Row],[Oszlop1]:[Dec]]) -> 15,900 Ft | Q6: 9% | R6: =TblKöltségek[[#This Row],[Oszlop1]]/TblKöltségek[[#Totals],[Oszlop1]] -> 10% | S6: =TblKöltségek[[#This Row],[Febr]]/TblKöltségek[[#Totals],[Febr]] -> 5% | T6: =TblKöltségek[[#This Row],[Márc]]/TblKöltségek[[#Totals],[Márc]] -> 3% | U6: =TblKöltségek[[#This Row],[Ápr]]/TblKöltségek[[#Totals],[Ápr]] -> 5% | V6: =TblKöltségek[[#This Row],[Máj]]/TblKöltségek[[#Totals],[Máj]] -> 5% | W6: =TblKöltségek[[#This Row],[Jún]]/TblKöltségek[[#Totals],[Jún]] -> 7% | X6: =TblKöltségek[[#This Row],[Júl]]/TblKöltségek[[#Totals],[Júl]] -> 7% | Y6: =TblKöltségek[[#This Row],[Aug]]/TblKöltségek[[#Totals],[Aug]] -> 2% | Z6: =TblKöltségek[[#This Row],[Szept]]/TblKöltségek[[#Totals],[Szept]] -> 3% | AA6: =TblKöltségek[[#This Row],[Okt]]/TblKöltségek[[#Totals],[Okt]] -> 5% | AB6: =TblKöltségek[[#This Row],[Nov]]/TblKöltségek[[#Totals],[Nov]] -> 8% | AC6: =TblKöltségek[[#This Row],[Dec]]/TblKöltségek[[#Totals],[Dec]] -> 2% | AD6: =TblKöltségek[[#This Row],[Éves]]/TblKöltségek[[#Totals],[Éves]] -> 5%
B7: Külső szolgáltatások | D7: 2,300 Ft | E7: 2,000 Ft | F7: 300 Ft | G7: 1,600 Ft | H7: 1,000 Ft | I7: 500 Ft | J7: 2,000 Ft | K7: 700 Ft | L7: 400 Ft | M7: 2,200 Ft | N7: 1,300 Ft | O7: 1,400 Ft | P7: =SUM(TblKöltségek[[#This Row],[Oszlop1]:[Dec]]) -> 15,700 Ft | Q7: 2% | R7: =TblKöltségek[[#This Row],[Oszlop1]]/TblKöltségek[[#Totals],[Oszlop1]] -> 10% | S7: =TblKöltségek[[#This Row],[Febr]]/TblKöltségek[[#Totals],[Febr]] -> 10% | T7: =TblKöltségek[[#This Row],[Márc]]/TblKöltségek[[#Totals],[Márc]] -> 1% | U7: =TblKöltségek[[#This Row],[Ápr]]/TblKöltségek[[#Totals],[Ápr]] -> 6% | V7: =TblKöltségek[[#This Row],[Máj]]/TblKöltségek[[#Totals],[Máj]] -> 4% | W7: =TblKöltségek[[#This Row],[Jún]]/TblKöltségek[[#Totals],[Jún]] -> 2% | X7: =TblKöltségek[[#This Row],[Júl]]/TblKöltségek[[#Totals],[Júl]] -> 8% | Y7: =TblKöltségek[[#This Row],[Aug]]/TblKöltségek[[#Totals],[Aug]] -> 3% | Z7: =TblKöltségek[[#This Row],[Szept]]/TblKöltségek[[#Totals],[Szept]] -> 2% | AA7: =TblKöltségek[[#This Row],[Okt]]/TblKöltségek[[#Totals],[Okt]] -> 8% | AB7: =TblKöltségek[[#This Row],[Nov]]/TblKöltségek[[#Totals],[Nov]] -> 4% | AC7: =TblKöltségek[[#This Row],[Dec]]/TblKöltségek[[#Totals],[Dec]] -> 6% | AD7: =TblKöltségek[[#This Row],[Éves]]/TblKöltségek[[#Totals],[Éves]] -> 5%
B8: Fogyóeszközök (irodaszer és üzemeltetés) | D8: 1,900 Ft | E8: 400 Ft | F8: 700 Ft | G8: 1,400 Ft | H8: 2,200 Ft | I8: 1,000 Ft | J8: 2,200 Ft | K8: 500 Ft | L8: 400 Ft | M8: 1,200 Ft | N8: 1,800 Ft | O8: 2,400 Ft | P8: =SUM(TblKöltségek[[#This Row],[Oszlop1]:[Dec]]) -> 16,100 Ft | Q8: 8% | R8: =TblKöltségek[[#This Row],[Oszlop1]]/TblKöltségek[[#Totals],[Oszlop1]] -> 8% | S8: =TblKöltségek[[#This Row],[Febr]]/TblKöltségek[[#Totals],[Febr]] -> 2% | T8: =TblKöltségek[[#This Row],[Márc]]/TblKöltségek[[#Totals],[Márc]] -> 3% | U8: =TblKöltségek[[#This Row],[Ápr]]/TblKöltségek[[#Totals],[Ápr]] -> 5% | V8: =TblKöltségek[[#This Row],[Máj]]/TblKöltségek[[#Totals],[Máj]] -> 9% | W8: =TblKöltségek[[#This Row],[Jún]]/TblKöltségek[[#Totals],[Jún]] -> 4% | X8: =TblKöltségek[[#This Row],[Júl]]/TblKöltségek[[#Totals],[Júl]] -> 8% | Y8: =TblKöltségek[[#This Row],[Aug]]/TblKöltségek[[#Totals],[Aug]] -> 2% | Z8: =TblKöltségek[[#This Row],[Szept]]/TblKöltségek[[#Totals],[Szept]] -> 2% | AA8: =TblKöltségek[[#This Row],[Okt]]/TblKöltségek[[#Totals],[Okt]] -> 5% | AB8: =TblKöltségek[[#This Row],[Nov]]/TblKöltségek[[#Totals],[Nov]] -> 6% | AC8: =TblKöltségek[[#This Row],[Dec]]/TblKöltségek[[#Totals],[Dec]] -> 10% | AD8: =TblKöltségek[[#This Row],[Éves]]/TblKöltségek[[#Totals],[Éves]] -> 5%
B9: Javítás és karbantartás | D9: 1,100 Ft | E9: 1,100 Ft | F9: 1,700 Ft | G9: 1,200 Ft | H9: 200 Ft | I9: 1,400 Ft | J9: 1,200 Ft | K9: 1,000 Ft | L9: 1,800 Ft | M9: 1,100 Ft | N9: 2,300 Ft | O9: 1,100 Ft | P9: =SUM(TblKöltségek[[#This Row],[Oszlop1]:[Dec]]) -> 15,200 Ft | Q9: 3% | R9: =TblKöltségek[[#This Row],[Oszlop1]]/TblKöltségek[[#Totals],[Oszlop1]] -> 5% | S9: =TblKöltségek[[#This Row],[Febr]]/TblKöltségek[[#Totals],[Febr]] -> 5% | T9: =TblKöltségek[[#This Row],[Márc]]/TblKöltségek[[#Totals],[Márc]] -> 7% | U9: =TblKöltségek[[#This Row],[Ápr]]/TblKöltségek[[#Totals],[Ápr]] -> 5% | V9: =TblKöltségek[[#This Row],[Máj]]/TblKöltségek[[#Totals],[Máj]] -> 1% | W9: =TblKöltségek[[#This Row],[Jún]]/TblKöltségek[[#Totals],[Jún]] -> 5% | X9: =TblKöltségek[[#This Row],[Júl]]/TblKöltségek[[#Totals],[Júl]] -> 5% | Y9: =TblKöltségek[[#This Row],[Aug]]/TblKöltségek[[#Totals],[Aug]] -> 4% | Z9: =TblKöltségek[[#This Row],[Szept]]/TblKöltségek[[#Totals],[Szept]] -> 8% | AA9: =TblKöltségek[[#This Row],[Okt]]/TblKöltségek[[#Totals],[Okt]] -> 4% | AB9: =TblKöltségek[[#This Row],[Nov]]/TblKöltségek[[#Totals],[Nov]] -> 8% | AC9: =TblKöltségek[[#This Row],[Dec]]/TblKöltségek[[#Totals],[Dec]] -> 5% | AD9: =TblKöltségek[[#This Row],[Éves]]/TblKöltségek[[#Totals],[Éves]] -> 5%
B10: Reklám | D10: 200 Ft | E10: 1,600 Ft | F10: 600 Ft | G10: 1,300 Ft | H10: 1,100 Ft | I10: 2,200 Ft | J10: 2,100 Ft | K10: 300 Ft | L10: 1,200 Ft | M10: 700 Ft | N10: 1,700 Ft | O10: 2,000 Ft | P10: =SUM(TblKöltségek[[#This Row],[Oszlop1]:[Dec]]) -> 15,000 Ft | Q10: 15% | R10: =TblKöltségek[[#This Row],[Oszlop1]]/TblKöltségek[[#Totals],[Oszlop1]] -> 1% | S10: =TblKöltségek[[#This Row],[Febr]]/TblKöltségek[[#Totals],[Febr]] -> 8% | T10: =TblKöltségek[[#This Row],[Márc]]/TblKöltségek[[#Totals],[Márc]] -> 2% | U10: =TblKöltségek[[#This Row],[Ápr]]/TblKöltségek[[#Totals],[Ápr]] -> 5% | V10: =TblKöltségek[[#This Row],[Máj]]/TblKöltségek[[#Totals],[Máj]] -> 4% | W10: =TblKöltségek[[#This Row],[Jún]]/TblKöltségek[[#Totals],[Jún]] -> 8% | X10: =TblKöltségek[[#This Row],[Júl]]/TblKöltségek[[#Totals],[Júl]] -> 8% | Y10: =TblKöltségek[[#This Row],[Aug]]/TblKöltségek[[#Totals],[Aug]] -> 1% | Z10: =TblKöltségek[[#This Row],[Szept]]/TblKöltségek[[#Totals],[Szept]] -> 5% | AA10: =TblKöltségek[[#This Row],[Okt]]/TblKöltségek[[#Totals],[Okt]] -> 3% | AB10: =TblKöltségek[[#This Row],[Nov]]/TblKöltségek[[#Totals],[Nov]] -> 6% | AC10: =TblKöltségek[[#This Row],[Dec]]/TblKöltségek[[#Totals],[Dec]] -> 9% | AD10: =TblKöltségek[[#This Row],[Éves]]/TblKöltségek[[#Totals],[Éves]] -> 5%
B11: Gépjármű, szállítás és utazás | D11: 800 Ft | E11: 1,700 Ft | F11: 1,100 Ft | G11: 1,100 Ft | H11: 2,100 Ft | I11: 900 Ft | J11: 2,000 Ft | K11: 300 Ft | L11: 1,400 Ft | M11: 2,200 Ft | N11: 1,600 Ft | O11: 1,200 Ft | P11: =SUM(TblKöltségek[[#This Row],[Oszlop1]:[Dec]]) -> 16,400 Ft | Q11: 12% | R11: =TblKöltségek[[#This Row],[Oszlop1]]/TblKöltségek[[#Totals],[Oszlop1]] -> 3% | S11: =TblKöltségek[[#This Row],[Febr]]/TblKöltségek[[#Totals],[Febr]] -> 8% | T11: =TblKöltségek[[#This Row],[Márc]]/TblKöltségek[[#Totals],[Márc]] -> 4% | U11: =TblKöltségek[[#This Row],[Ápr]]/TblKöltségek[[#Totals],[Ápr]] -> 4% | V11: =TblKöltségek[[#This Row],[Máj]]/TblKöltségek[[#Totals],[Máj]] -> 8% | W11: =TblKöltségek[[#This Row],[Jún]]/TblKöltségek[[#Totals],[Jún]] -> 3% | X11: =TblKöltségek[[#This Row],[Júl]]/TblKöltségek[[#Totals],[Júl]] -> 8% | Y11: =TblKöltségek[[#This Row],[Aug]]/TblKöltségek[[#Totals],[Aug]] -> 1% | Z11: =TblKöltségek[[#This Row],[Szept]]/TblKöltségek[[#Totals],[Szept]] -> 6% | AA11: =TblKöltségek[[#This Row],[Okt]]/TblKöltségek[[#Totals],[Okt]] -> 8% | AB11: =TblKöltségek[[#This Row],[Nov]]/TblKöltségek[[#Totals],[Nov]] -> 5% | AC11: =TblKöltségek[[#This Row],[Dec]]/TblKöltségek[[#Totals],[Dec]] -> 5% | AD11: =TblKöltségek[[#This Row],[Éves]]/TblKöltségek[[#Totals],[Éves]] -> 5%
B12: Könyvelési és jogi díjak | D12: 500 Ft | E12: 1,300 Ft | F12: 600 Ft | G12: 1,500 Ft | H12: 1,900 Ft | I12: 1,000 Ft | J12: 1,200 Ft | K12: 900 Ft | L12: 1,500 Ft | M12: 1,600 Ft | N12: 400 Ft | O12: 900 Ft | P12: =SUM(TblKöltségek[[#This Row],[Oszlop1]:[Dec]]) -> 13,300 Ft | Q12: 9% | R12: =TblKöltségek[[#This Row],[Oszlop1]]/TblKöltségek[[#Totals],[Oszlop1]] -> 2% | S12: =TblKöltségek[[#This Row],[Febr]]/TblKöltségek[[#Totals],[Febr]] -> 6% | T12: =TblKöltségek[[#This Row],[Márc]]/TblKöltségek[[#Totals],[Márc]] -> 2% | U12: =TblKöltségek[[#This Row],[Ápr]]/TblKöltségek[[#Totals],[Ápr]] -> 6% | V12: =TblKöltségek[[#This Row],[Máj]]/TblKöltségek[[#Totals],[Máj]] -> 7% | W12: =TblKöltségek[[#This Row],[Jún]]/TblKöltségek[[#Totals],[Jún]] -> 4% | X12: =TblKöltségek[[#This Row],[Júl]]/TblKöltségek[[#Totals],[Júl]] -> 5% | Y12: =TblKöltségek[[#This Row],[Aug]]/TblKöltségek[[#Totals],[Aug]] -> 4% | Z12: =TblKöltségek[[#This Row],[Szept]]/TblKöltségek[[#Totals],[Szept]] -> 7% | AA12: =TblKöltségek[[#This Row],[Okt]]/TblKöltségek[[#Totals],[Okt]] -> 6% | AB12: =TblKöltségek[[#This Row],[Nov]]/TblKöltségek[[#Totals],[Nov]] -> 1% | AC12: =TblKöltségek[[#This Row],[Dec]]/TblKöltségek[[#Totals],[Dec]] -> 4% | AD12: =TblKöltségek[[#This Row],[Éves]]/TblKöltségek[[#Totals],[Éves]] -> 4%
B13: Bérleti díj | D13: 800 Ft | E13: 400 Ft | F13: 2,300 Ft | G13: 2,500 Ft | H13: 1,000 Ft | I13: 2,400 Ft | J13: 2,200 Ft | K13: 500 Ft | L13: 1,200 Ft | M13: 2,400 Ft | N13: 2,400 Ft | O13: 1,200 Ft | P13: =SUM(TblKöltségek[[#This Row],[Oszlop1]:[Dec]]) -> 19,300 Ft | Q13: 1% | R13: =TblKöltségek[[#This Row],[Oszlop1]]/TblKöltségek[[#Totals],[Oszlop1]] -> 3% | S13: =TblKöltségek[[#This Row],[Febr]]/TblKöltségek[[#Totals],[Febr]] -> 2% | T13: =TblKöltségek[[#This Row],[Márc]]/TblKöltségek[[#Totals],[Márc]] -> 9% | U13: =TblKöltségek[[#This Row],[Ápr]]/TblKöltségek[[#Totals],[Ápr]] -> 10% | V13: =TblKöltségek[[#This Row],[Máj]]/TblKöltségek[[#Totals],[Máj]] -> 4% | W13: =TblKöltségek[[#This Row],[Jún]]/TblKöltségek[[#Totals],[Jún]] -> 9% | X13: =TblKöltségek[[#This Row],[Júl]]/TblKöltségek[[#Totals],[Júl]] -> 8% | Y13: =TblKöltségek[[#This Row],[Aug]]/TblKöltségek[[#Totals],[Aug]] -> 2% | Z13: =TblKöltségek[[#This Row],[Szept]]/TblKöltségek[[#Totals],[Szept]] -> 5% | AA13: =TblKöltségek[[#This Row],[Okt]]/TblKöltségek[[#Totals],[Okt]] -> 9% | AB13: =TblKöltségek[[#This Row],[Nov]]/TblKöltségek[[#Totals],[Nov]] -> 8% | AC13: =TblKöltségek[[#This Row],[Dec]]/TblKöltségek[[#Totals],[Dec]] -> 5% | AD13: =TblKöltségek[[#This Row],[Éves]]/TblKöltségek[[#Totals],[Éves]] -> 6%
B14: Telefon | D14: 2,500 Ft | E14: 200 Ft | F14: 1,200 Ft | G14: 2,500 Ft | H14: 1,000 Ft | I14: 2,400 Ft | J14: 300 Ft | K14: 2,000 Ft | L14: 300 Ft | M14: 900 Ft | N14: 2,000 Ft | O14: 1,800 Ft | P14: =SUM(TblKöltségek[[#This Row],[Oszlop1]:[Dec]]) -> 17,100 Ft | Q14: 1% | R14: =TblKöltségek[[#This Row],[Oszlop1]]/TblKöltségek[[#Totals],[Oszlop1]] -> 11% | S14: =TblKöltségek[[#This Row],[Febr]]/TblKöltségek[[#Totals],[Febr]] -> 1% | T14: =TblKöltségek[[#This Row],[Márc]]/TblKöltségek[[#Totals],[Márc]] -> 5% | U14: =TblKöltségek[[#This Row],[Ápr]]/TblKöltségek[[#Totals],[Ápr]] -> 10% | V14: =TblKöltségek[[#This Row],[Máj]]/TblKöltségek[[#Totals],[Máj]] -> 4% | W14: =TblKöltségek[[#This Row],[Jún]]/TblKöltségek[[#Totals],[Jún]] -> 9% | X14: =TblKöltségek[[#This Row],[Júl]]/TblKöltségek[[#Totals],[Júl]] -> 1% | Y14: =TblKöltségek[[#This Row],[Aug]]/TblKöltségek[[#Totals],[Aug]] -> 9% | Z14: =TblKöltségek[[#This Row],[Szept]]/TblKöltségek[[#Totals],[Szept]] -> 1% | AA14: =TblKöltségek[[#This Row],[Okt]]/TblKöltségek[[#Totals],[Okt]] -> 3% | AB14: =TblKöltségek[[#This Row],[Nov]]/TblKöltségek[[#Totals],[Nov]] -> 7% | AC14: =TblKöltségek[[#This Row],[Dec]]/TblKöltségek[[#Totals],[Dec]] -> 8% | AD14: =TblKöltségek[[#This Row],[Éves]]/TblKöltségek[[#Totals],[Éves]] -> 6%
B15: Közmű | D15: 1,600 Ft | E15: 1,900 Ft | F15: 900 Ft | G15: 1,600 Ft | H15: 1,300 Ft | I15: 200 Ft | J15: 400 Ft | K15: 2,400 Ft | L15: 1,600 Ft | M15: 2,200 Ft | N15: 700 Ft | O15: 1,800 Ft | P15: =SUM(TblKöltségek[[#This Row],[Oszlop1]:[Dec]]) -> 16,600 Ft | Q15: 1% | R15: =TblKöltségek[[#This Row],[Oszlop1]]/TblKöltségek[[#Totals],[Oszlop1]] -> 7% | S15: =TblKöltségek[[#This Row],[Febr]]/TblKöltségek[[#Totals],[Febr]] -> 9% | T15: =TblKöltségek[[#This Row],[Márc]]/TblKöltségek[[#Totals],[Márc]] -> 4% | U15: =TblKöltségek[[#This Row],[Ápr]]/TblKöltségek[[#Totals],[Ápr]] -> 6% | V15: =TblKöltségek[[#This Row],[Máj]]/TblKöltségek[[#Totals],[Máj]] -> 5% | W15: =TblKöltségek[[#This Row],[Jún]]/TblKöltségek[[#Totals],[Jún]] -> 1% | X15: =TblKöltségek[[#This Row],[Júl]]/TblKöltségek[[#Totals],[Júl]] -> 2% | Y15: =TblKöltségek[[#This Row],[Aug]]/TblKöltségek[[#Totals],[Aug]] -> 10% | Z15: =TblKöltségek[[#This Row],[Szept]]/TblKöltségek[[#Totals],[Szept]] -> 7% | AA15: =TblKöltségek[[#This Row],[Okt]]/TblKöltségek[[#Totals],[Okt]] -> 8% | AB15: =TblKöltségek[[#This Row],[Nov]]/TblKöltségek[[#Totals],[Nov]] -> 2% | AC15: =TblKöltségek[[#This Row],[Dec]]/TblKöltségek[[#Totals],[Dec]] -> 8% | AD15: =TblKöltségek[[#This Row],[Éves]]/TblKöltségek[[#Totals],[Éves]] -> 6%
B16: Biztosítás | D16: 1,200 Ft | E16: 900 Ft | F16: 1,600 Ft | G16: 1,900 Ft | H16: 2,500 Ft | I16: 1,700 Ft | J16: 2,000 Ft | K16: 1,400 Ft | L16: 500 Ft | M16: 1,400 Ft | N16: 500 Ft | O16: 200 Ft | P16: =SUM(TblKöltségek[[#This Row],[Oszlop1]:[Dec]]) -> 15,800 Ft | Q16: 1% | R16: =TblKöltségek[[#This Row],[Oszlop1]]/TblKöltségek[[#Totals],[Oszlop1]] -> 5% | S16: =TblKöltségek[[#This Row],[Febr]]/TblKöltségek[[#Totals],[Febr]] -> 4% | T16: =TblKöltségek[[#This Row],[Márc]]/TblKöltségek[[#Totals],[Márc]] -> 6% | U16: =TblKöltségek[[#This Row],[Ápr]]/TblKöltségek[[#Totals],[Ápr]] -> 7% | V16: =TblKöltségek[[#This Row],[Máj]]/TblKöltségek[[#Totals],[Máj]] -> 10% | W16: =TblKöltségek[[#This Row],[Jún]]/TblKöltségek[[#Totals],[Jún]] -> 6% | X16: =TblKöltségek[[#This Row],[Júl]]/TblKöltségek[[#Totals],[Júl]] -> 8% | Y16: =TblKöltségek[[#This Row],[Aug]]/TblKöltségek[[#Totals],[Aug]] -> 6% | Z16: =TblKöltségek[[#This Row],[Szept]]/TblKöltségek[[#Totals],[Szept]] -> 2% | AA16: =TblKöltségek[[#This Row],[Okt]]/TblKöltségek[[#Totals],[Okt]] -> 5% | AB16: =TblKöltségek[[#This Row],[Nov]]/TblKöltségek[[#Totals],[Nov]] -> 2% | AC16: =TblKöltségek[[#This Row],[Dec]]/TblKöltségek[[#Totals],[Dec]] -> 1% | AD16: =TblKöltségek[[#This Row],[Éves]]/TblKöltségek[[#Totals],[Éves]] -> 5%
B17: Adó (ingatlanadó stb.) | D17: 1,600 Ft | E17: 1,300 Ft | F17: 1,000 Ft | G17: 700 Ft | H17: 1,300 Ft | I17: 300 Ft | J17: 1,300 Ft | K17: 1,700 Ft | L17: 900 Ft | M17: 400 Ft | N17: 2,200 Ft | O17: 1,800 Ft | P17: =SUM(TblKöltségek[[#This Row],[Oszlop1]:[Dec]]) -> 14,500 Ft | Q17: 14% | R17: =TblKöltségek[[#This Row],[Oszlop1]]/TblKöltségek[[#Totals],[Oszlop1]] -> 7% | S17: =TblKöltségek[[#This Row],[Febr]]/TblKöltségek[[#Totals],[Febr]] -> 6% | T17: =TblKöltségek[[#This Row],[Márc]]/TblKöltségek[[#Totals],[Márc]] -> 4% | U17: =TblKöltségek[[#This Row],[Ápr]]/TblKöltségek[[#Totals],[Ápr]] -> 3% | V17: =TblKöltségek[[#This Row],[Máj]]/TblKöltségek[[#Totals],[Máj]] -> 5% | W17: =TblKöltségek[[#This Row],[Jún]]/TblKöltségek[[#Totals],[Jún]] -> 1% | X17: =TblKöltségek[[#This Row],[Júl]]/TblKöltségek[[#Totals],[Júl]] -> 5% | Y17: =TblKöltségek[[#This Row],[Aug]]/TblKöltségek[[#Totals],[Aug]] -> 7% | Z17: =TblKöltségek[[#This Row],[Szept]]/TblKöltségek[[#Totals],[Szept]] -> 4% | AA17: =TblKöltségek[[#This Row],[Okt]]/TblKöltségek[[#Totals],[Okt]] -> 2% | AB17: =TblKöltségek[[#This Row],[Nov]]/TblKöltségek[[#Totals],[Nov]] -> 7% | AC17: =TblKöltségek[[#This Row],[Dec]]/TblKöltségek[[#Totals],[Dec]] -> 8% | AD17: =TblKöltségek[[#This Row],[Éves]]/TblKöltségek[[#Totals],[Éves]] -> 5%
B18: Kamat | D18: 300 Ft | E18: 200 Ft | F18: 1,900 Ft | G18: 2,100 Ft | H18: 1,300 Ft | I18: 900 Ft | J18: 700 Ft | K18: 1,300 Ft | L18: 300 Ft | M18: 600 Ft | N18: 1,000 Ft | O18: 1,300 Ft | P18: =SUM(TblKöltségek[[#This Row],[Oszlop1]:[Dec]]) -> 11,900 Ft | Q18: 6% | R18: =TblKöltségek[[#This Row],[Oszlop1]]/TblKöltségek[[#Totals],[Oszlop1]] -> 1% | S18: =TblKöltségek[[#This Row],[Febr]]/TblKöltségek[[#Totals],[Febr]] -> 1% | T18: =TblKöltségek[[#This Row],[Márc]]/TblKöltségek[[#Totals],[Márc]] -> 8% | U18: =TblKöltségek[[#This Row],[Ápr]]/TblKöltségek[[#Totals],[Ápr]] -> 8% | V18: =TblKöltségek[[#This Row],[Máj]]/TblKöltségek[[#Totals],[Máj]] -> 5% | W18: =TblKöltségek[[#This Row],[Jún]]/TblKöltségek[[#Totals],[Jún]] -> 3% | X18: =TblKöltségek[[#This Row],[Júl]]/TblKöltségek[[#Totals],[Júl]] -> 3% | Y18: =TblKöltségek[[#This Row],[Aug]]/TblKöltségek[[#Totals],[Aug]] -> 6% | Z18: =TblKöltségek[[#This Row],[Szept]]/TblKöltségek[[#Totals],[Szept]] -> 1% | AA18: =TblKöltségek[[#This Row],[Okt]]/TblKöltségek[[#Totals],[Okt]] -> 2% | AB18: =TblKöltségek[[#This Row],[Nov]]/TblKöltségek[[#Totals],[Nov]] -> 3% | AC18: =TblKöltségek[[#This Row],[Dec]]/TblKöltségek[[#Totals],[Dec]] -> 6% | AD18: =TblKöltségek[[#This Row],[Éves]]/TblKöltségek[[#Totals],[Éves]] -> 4%
B19: Értékcsökkenés | D19: 800 Ft | E19: 700 Ft | F19: 600 Ft | G19: 700 Ft | H19: 700 Ft | I19: 600 Ft | J19: 1,500 Ft | K19: 2,300 Ft | L19: 2,100 Ft | M19: 1,600 Ft | N19: 1,900 Ft | O19: 700 Ft | P19: =SUM(TblKöltségek[[#This Row],[Oszlop1]:[Dec]]) -> 14,200 Ft | Q19: 1% | R19: =TblKöltségek[[#This Row],[Oszlop1]]/TblKöltségek[[#Totals],[Oszlop1]] -> 3% | S19: =TblKöltségek[[#This Row],[Febr]]/TblKöltségek[[#Totals],[Febr]] -> 3% | T19: =TblKöltségek[[#This Row],[Márc]]/TblKöltségek[[#Totals],[Márc]] -> 2% | U19: =TblKöltségek[[#This Row],[Ápr]]/TblKöltségek[[#Totals],[Ápr]] -> 3% | V19: =TblKöltségek[[#This Row],[Máj]]/TblKöltségek[[#Totals],[Máj]] -> 3% | W19: =TblKöltségek[[#This Row],[Jún]]/TblKöltségek[[#Totals],[Jún]] -> 2% | X19: =TblKöltségek[[#This Row],[Júl]]/TblKöltségek[[#Totals],[Júl]] -> 6% | Y19: =TblKöltségek[[#This Row],[Aug]]/TblKöltségek[[#Totals],[Aug]] -> 10% | Z19: =TblKöltségek[[#This Row],[Szept]]/TblKöltségek[[#Totals],[Szept]] -> 9% | AA19: =TblKöltségek[[#This Row],[Okt]]/TblKöltségek[[#Totals],[Okt]] -> 6% | AB19: =TblKöltségek[[#This Row],[Nov]]/TblKöltségek[[#Totals],[Nov]] -> 6% | AC19: =TblKöltségek[[#This Row],[Dec]]/TblKöltségek[[#Totals],[Dec]] -> 3% | AD19: =TblKöltségek[[#This Row],[Éves]]/TblKöltségek[[#Totals],[Éves]] -> 5%
B20: Egyéb költség (adja meg) | D20: 1,400 Ft | E20: 400 Ft | F20: 2,400 Ft | G20: 600 Ft | H20: 2,000 Ft | I20: 1,400 Ft | J20: 2,100 Ft | K20: 2,000 Ft | L20: 2,200 Ft | M20: 300 Ft | N20: 1,400 Ft | O20: 600 Ft | P20: =SUM(TblKöltségek[[#This Row],[Oszlop1]:[Dec]]) -> 16,800 Ft | Q20: 1% | R20: =TblKöltségek[[#This Row],[Oszlop1]]/TblKöltségek[[#Totals],[Oszlop1]] -> 6% | S20: =TblKöltségek[[#This Row],[Febr]]/TblKöltségek[[#Totals],[Febr]] -> 2% | T20: =TblKöltségek[[#This Row],[Márc]]/TblKöltségek[[#Totals],[Márc]] -> 10% | U20: =TblKöltségek[[#This Row],[Ápr]]/TblKöltségek[[#Totals],[Ápr]] -> 2% | V20: =TblKöltségek[[#This Row],[Máj]]/TblKöltségek[[#Totals],[Máj]] -> 8% | W20: =TblKöltségek[[#This Row],[Jún]]/TblKöltségek[[#Totals],[Jún]] -> 5% | X20: =TblKöltségek[[#This Row],[Júl]]/TblKöltségek[[#Totals],[Júl]] -> 8% | Y20: =TblKöltségek[[#This Row],[Aug]]/TblKöltségek[[#Totals],[Aug]] -> 9% | Z20: =TblKöltségek[[#This Row],[Szept]]/TblKöltségek[[#Totals],[Szept]] -> 10% | AA20: =TblKöltségek[[#This Row],[Okt]]/TblKöltségek[[#Totals],[Okt]] -> 1% | AB20: =TblKöltségek[[#This Row],[Nov]]/TblKöltségek[[#Totals],[Nov]] -> 5% | AC20: =TblKöltségek[[#This Row],[Dec]]/TblKöltségek[[#Totals],[Dec]] -> 3% | AD20: =TblKöltségek[[#This Row],[Éves]]/TblKöltségek[[#Totals],[Éves]] -> 6%
B21: Egyéb költség (adja meg) | D21: 1,400 Ft | E21: 700 Ft | F21: 2,400 Ft | G21: 1,000 Ft | H21: 700 Ft | I21: 2,400 Ft | J21: 200 Ft | K21: 1,100 Ft | L21: 2,100 Ft | M21: 1,900 Ft | N21: 1,900 Ft | O21: 2,000 Ft | P21: =SUM(TblKöltségek[[#This Row],[Oszlop1]:[Dec]]) -> 17,800 Ft | Q21: 1% | R21: =TblKöltségek[[#This Row],[Oszlop1]]/TblKöltségek[[#Totals],[Oszlop1]] -> 6% | S21: =TblKöltségek[[#This Row],[Febr]]/TblKöltségek[[#Totals],[Febr]] -> 3% | T21: =TblKöltségek[[#This Row],[Márc]]/TblKöltségek[[#Totals],[Márc]] -> 10% | U21: =TblKöltségek[[#This Row],[Ápr]]/TblKöltségek[[#Totals],[Ápr]] -> 4% | V21: =TblKöltségek[[#This Row],[Máj]]/TblKöltségek[[#Totals],[Máj]] -> 3% | W21: =TblKöltségek[[#This Row],[Jún]]/TblKöltségek[[#Totals],[Jún]] -> 9% | X21: =TblKöltségek[[#This Row],[Júl]]/TblKöltségek[[#Totals],[Júl]] -> 1% | Y21: =TblKöltségek[[#This Row],[Aug]]/TblKöltségek[[#Totals],[Aug]] -> 5% | Z21: =TblKöltségek[[#This Row],[Szept]]/TblKöltségek[[#Totals],[Szept]] -> 9% | AA21: =TblKöltségek[[#This Row],[Okt]]/TblKöltségek[[#Totals],[Okt]] -> 7% | AB21: =TblKöltségek[[#This Row],[Nov]]/TblKöltségek[[#Totals],[Nov]] -> 6% | AC21: =TblKöltségek[[#This Row],[Dec]]/TblKöltségek[[#Totals],[Dec]] -> 9% | AD21: =TblKöltségek[[#This Row],[Éves]]/TblKöltségek[[#Totals],[Éves]] -> 6%
B22: Egyéb költség (adja meg) | D22: 1,100 Ft | E22: 800 Ft | F22: 2,500 Ft | G22: 1,100 Ft | H22: 900 Ft | I22: 2,400 Ft | J22: 1,300 Ft | K22: 1,400 Ft | L22: 1,900 Ft | M22: 2,400 Ft | N22: 1,500 Ft | O22: 700 Ft | P22: =SUM(TblKöltségek[[#This Row],[Oszlop1]:[Dec]]) -> 18,000 Ft | Q22: 1% | R22: =TblKöltségek[[#This Row],[Oszlop1]]/TblKöltségek[[#Totals],[Oszlop1]] -> 5% | S22: =TblKöltségek[[#This Row],[Febr]]/TblKöltségek[[#Totals],[Febr]] -> 4% | T22: =TblKöltségek[[#This Row],[Márc]]/TblKöltségek[[#Totals],[Márc]] -> 10% | U22: =TblKöltségek[[#This Row],[Ápr]]/TblKöltségek[[#Totals],[Ápr]] -> 4% | V22: =TblKöltségek[[#This Row],[Máj]]/TblKöltségek[[#Totals],[Máj]] -> 4% | W22: =TblKöltségek[[#This Row],[Jún]]/TblKöltségek[[#Totals],[Jún]] -> 9% | X22: =TblKöltségek[[#This Row],[Júl]]/TblKöltségek[[#Totals],[Júl]] -> 5% | Y22: =TblKöltségek[[#This Row],[Aug]]/TblKöltségek[[#Totals],[Aug]] -> 6% | Z22: =TblKöltségek[[#This Row],[Szept]]/TblKöltségek[[#Totals],[Szept]] -> 8% | AA22: =TblKöltségek[[#This Row],[Okt]]/TblKöltségek[[#Totals],[Okt]] -> 9% | AB22: =TblKöltségek[[#This Row],[Nov]]/TblKöltségek[[#Totals],[Nov]] -> 5% | AC22: =TblKöltségek[[#This Row],[Dec]]/TblKöltségek[[#Totals],[Dec]] -> 3% | AD22: =TblKöltségek[[#This Row],[Éves]]/TblKöltségek[[#Totals],[Éves]] -> 6%
B23: Vegyes (külön megjelölés nélkül) | D23: 800 Ft | E23: 2,000 Ft | F23: 1,100 Ft | G23: 1,100 Ft | H23: 1,100 Ft | I23: 2,000 Ft | J23: 1,200 Ft | K23: 1,600 Ft | L23: 500 Ft | M23: 700 Ft | N23: 2,100 Ft | O23: 300 Ft | P23: =SUM(TblKöltségek[[#This Row],[Oszlop1]:[Dec]]) -> 14,500 Ft | Q23: 2% | R23: =TblKöltségek[[#This Row],[Oszlop1]]/TblKöltségek[[#Totals],[Oszlop1]] -> 3% | S23: =TblKöltségek[[#This Row],[Febr]]/TblKöltségek[[#Totals],[Febr]] -> 10% | T23: =TblKöltségek[[#This Row],[Márc]]/TblKöltségek[[#Totals],[Márc]] -> 4% | U23: =TblKöltségek[[#This Row],[Ápr]]/TblKöltségek[[#Totals],[Ápr]] -> 4% | V23: =TblKöltségek[[#This Row],[Máj]]/TblKöltségek[[#Totals],[Máj]] -> 4% | W23: =TblKöltségek[[#This Row],[Jún]]/TblKöltségek[[#Totals],[Jún]] -> 7% | X23: =TblKöltségek[[#This Row],[Júl]]/TblKöltségek[[#Totals],[Júl]] -> 5% | Y23: =TblKöltségek[[#This Row],[Aug]]/TblKöltségek[[#Totals],[Aug]] -> 7% | Z23: =TblKöltségek[[#This Row],[Szept]]/TblKöltségek[[#Totals],[Szept]] -> 2% | AA23: =TblKöltségek[[#This Row],[Okt]]/TblKöltségek[[#Totals],[Okt]] -> 3% | AB23: =TblKöltségek[[#This Row],[Nov]]/TblKöltségek[[#Totals],[Nov]] -> 7% | AC23: =TblKöltségek[[#This Row],[Dec]]/TblKöltségek[[#Totals],[Dec]] -> 1% | AD23: =TblKöltségek[[#This Row],[Éves]]/TblKöltségek[[#Totals],[Éves]] -> 5%
B24: ÖSSZES KÖLTSÉG | D24: =SUBTOTAL(109,TblKöltségek[Oszlop1]) -> 23,600 Ft | E24: =SUBTOTAL(109,TblKöltségek[Febr]) -> 20,500 Ft | F24: =SUBTOTAL(109,TblKöltségek[Márc]) -> 24,900 Ft | G24: =SUBTOTAL(109,TblKöltségek[Ápr]) -> 26,100 Ft | H24: =SUBTOTAL(109,TblKöltségek[Máj]) -> 25,700 Ft | I24: =SUBTOTAL(109,TblKöltségek[Jún]) -> 27,400 Ft | J24: =SUBTOTAL(109,TblKöltségek[Júl]) -> 26,600 Ft | K24: =SUBTOTAL(109,TblKöltségek[Aug]) -> 23,500 Ft | L24: =SUBTOTAL(109,TblKöltségek[Szept]) -> 23,000 Ft | M24: =SUBTOTAL(109,TblKöltségek[Okt]) -> 25,900 Ft | N24: =SUBTOTAL(109,TblKöltségek[Nov]) -> 29,600 Ft | O24: =SUBTOTAL(109,TblKöltségek[Dec]) -> 23,100 Ft | P24: =SUBTOTAL(109,TblKöltségek[Éves]) -> 299,900 Ft | Q24: =SUBTOTAL(109,TblKöltségek[Index %]) -> 100% | R24: =SUBTOTAL(109,TblKöltségek[Jan %]) -> 100% | S24: =SUBTOTAL(109,TblKöltségek[Feb %]) -> 100% | T24: =SUBTOTAL(109,TblKöltségek[Már %]) -> 100% | U24: =SUBTOTAL(109,TblKöltségek[Ápr %]) -> 100% | V24: =SUBTOTAL(109,TblKöltségek[Máj %]) -> 100% | W24: =SUBTOTAL(109,TblKöltségek[Jún %]) -> 100% | X24: =SUBTOTAL(109,TblKöltségek[Júl %]) -> 100% | Y24: =SUBTOTAL(109,TblKöltségek[Aug %]) -> 100% | Z24: =SUBTOTAL(109,TblKöltségek[Sze %]) -> 100% | AA24: =SUBTOTAL(109,TblKöltségek[Okt %]) -> 100% | AB24: =SUBTOTAL(109,TblKöltségek[Nov %]) -> 100% | AC24: =SUBTOTAL(109,TblKöltségek[Dec %]) -> 100% | AD24: =SUBTOTAL(109,TblKöltségek[Éves %]) -> 100%
B26: Nettó profit | D26: ='Értékesítés költsége'!$D$14-TblKöltségek[[#Totals],[Oszlop1]] -> 12,300 Ft | E26: ='Értékesítés költsége'!E14-TblKöltségek[[#Totals],[Febr]] -> 17,500 Ft | F26: ='Értékesítés költsége'!F14-TblKöltségek[[#Totals],[Márc]] -> 25,600 Ft | G26: ='Értékesítés költsége'!G14-TblKöltségek[[#Totals],[Ápr]] -> 10,900 Ft | H26: ='Értékesítés költsége'!H14-TblKöltségek[[#Totals],[Máj]] -> 15,600 Ft | I26: ='Értékesítés költsége'!I14-TblKöltségek[[#Totals],[Jún]] -> -800 Ft | J26: ='Értékesítés költsége'!J14-TblKöltségek[[#Totals],[Júl]] -> 3,200 Ft | K26: ='Értékesítés költsége'!K14-TblKöltségek[[#Totals],[Aug]] -> 21,400 Ft | L26: ='Értékesítés költsége'!L14-TblKöltségek[[#Totals],[Szept]] -> 10,000 Ft | M26: ='Értékesítés költsége'!M14-TblKöltségek[[#Totals],[Okt]] -> 14,800 Ft | N26: ='Értékesítés költsége'!N14-TblKöltségek[[#Totals],[Nov]] -> 17,900 Ft | O26: ='Értékesítés költsége'!O14-TblKöltségek[[#Totals],[Dec]] -> 35,900 Ft | P26: =SUM(D26:O26) -> 184,300 Ft | R26: =D26/$P$26 -> 7% | S26: =E26/$P$26 -> 9% | T26: 14% | U26: 6% | V26: 8% | W26: -0% | X26: 2% | Y26: 12% | Z26: 5% | AA26: 8% | AB26: 10% | AC26: 19% | AD26: 100%
